[Event "*** SCC Grand Prix: Titled Tuesday Blitz"]
[Site "Chess.com"]
[Date "2020.06.02"]
[Round "3"]
[White "karinachess1"]
[Black "doctorcristian"]
[Result "1-0"]
[WhiteElo "2508"]
[BlackElo "2292"]
[TimeControl "180+1"]
[EndTime "10:27:10 PDT"]
[Termination "karinachess1 won by resignation"]

1. e4 {[%clk 0:03:00.5]} 1... c5 {[%clk 0:02:59.1]} 2. Nf3 {[%clk 0:02:56.3]}
2... Nc6 {[%clk 0:02:59.2]} 3. d4 {[%clk 0:02:55]} 3... cxd4 {[%clk 0:02:59.1]}
4. Nxd4 {[%clk 0:02:55.9]} 4... g6 {[%clk 0:02:56]} 5. c4 {[%clk 0:02:47.9]}
5... Nf6 {[%clk 0:02:52.5]} 6. Nc3 {[%clk 0:02:46.2]} 6... Nxd4 {[%clk
0:02:51.6]} 7. Qxd4 {[%clk 0:02:45.9]} 7... d6 {[%clk 0:02:52]} 8. f3 {[%clk
0:02:41.6]} 8... Bg7 {[%clk 0:02:51.6]} 9. Be3 {[%clk 0:02:41.2]} 9... O-O
{[%clk 0:02:50.4]} 10. Qd2 {[%clk 0:02:41.2]} 10... a5 {[%clk 0:02:41.9]} 11.
Be2 {[%clk 0:02:35.2]} 11... a4 {[%clk 0:02:41.6]} 12. O-O {[%clk 0:02:24.6]}
12... Qa5 {[%clk 0:02:41]} 13. Rac1 {[%clk 0:02:23.9]} 13... Be6 {[%clk
0:02:40.3]} 14. Nd5 {[%clk 0:02:16.4]} 14... Nxd5 {[%clk 0:02:29.3]} 15. Qxa5
{[%clk 0:01:49.1]} 15... Rxa5 {[%clk 0:02:26.4]} 16. cxd5 {[%clk 0:01:48.8]}
16... Bd7 {[%clk 0:01:52]} 17. Bb6 {[%clk 0:01:32.1]} 17... Raa8 {[%clk
0:01:18.1]} 18. Rc7 {[%clk 0:01:30.3]} 18... Rfd8 {[%clk 0:01:18]} 19. Rb1
{[%clk 0:00:51]} 19... Kf8 {[%clk 0:01:13.1]} 20. Kf2 {[%clk 0:00:48.6]} 20...
Ke8 {[%clk 0:01:12.4]} 21. Ke3 {[%clk 0:00:43]} 21... Rdb8 {[%clk 0:01:04.3]}
22. Rxd7 {[%clk 0:00:35.3]} 1-0

[Event "*** SCC Grand Prix: Titled Tuesday Blitz"]
[Site "Chess.com"]
[Date "2020.06.02"]
[Round "3"]
[White "ZEN-22"]
[Black "tan275"]
[Result "0-1"]
[WhiteElo "2363"]
[BlackElo "2187"]
[TimeControl "180+1"]
[EndTime "10:27:12 PDT"]
[Termination "tan275 won by checkmate"]

1. e4 {[%clk 0:03:00.9]} 1... c6 {[%clk 0:02:59.1]} 2. Bc4 {[%clk 0:02:59.4]}
2... d5 {[%clk 0:03:00]} 3. Bb3 {[%clk 0:03:00.2]} 3... e5 {[%clk 0:02:58.5]} 4.
Nc3 {[%clk 0:02:59.6]} 4... Nf6 {[%clk 0:02:57.4]} 5. exd5 {[%clk 0:02:54]} 5...
cxd5 {[%clk 0:02:57.1]} 6. Nf3 {[%clk 0:02:48.9]} 6... Nc6 {[%clk 0:02:39.2]} 7.
d4 {[%clk 0:02:47.3]} 7... e4 {[%clk 0:02:36.7]} 8. Ne5 {[%clk 0:02:47.1]} 8...
Bb4 {[%clk 0:02:25.8]} 9. Bg5 {[%clk 0:02:39.8]} 9... O-O {[%clk 0:02:23.4]} 10.
O-O {[%clk 0:02:38.5]} 10... h6 {[%clk 0:02:20.9]} 11. Bxf6 {[%clk 0:02:35.9]}
11... Qxf6 {[%clk 0:02:17.7]} 12. Nxd5 {[%clk 0:02:35.9]} 12... Qd6 {[%clk
0:02:11.6]} 13. Nxc6 {[%clk 0:02:32.3]} 13... bxc6 {[%clk 0:02:10.6]} 14. Nxb4
{[%clk 0:02:31.2]} 14... Qxb4 {[%clk 0:02:11.5]} 15. c3 {[%clk 0:02:30.3]} 15...
Qb6 {[%clk 0:02:07.4]} 16. Re1 {[%clk 0:02:31.2]} 16... Bf5 {[%clk 0:02:06.4]}
17. f3 {[%clk 0:02:30.7]} 17... Rfe8 {[%clk 0:01:56.2]} 18. fxe4 {[%clk
0:02:29.2]} 18... Bxe4 {[%clk 0:01:53.6]} 19. Bxf7+ {[%clk 0:02:19.8]} 19...
Kxf7 {[%clk 0:01:49.5]} 20. Rxe4 {[%clk 0:02:18.4]} 20... Rxe4 {[%clk
0:01:25.7]} 21. Qf3+ {[%clk 0:02:17.4]} 21... Kg8 {[%clk 0:01:24.3]} 22. Qxe4
{[%clk 0:02:16.9]} 22... Qxb2 {[%clk 0:01:22.5]} 23. Qe1 {[%clk 0:02:06.5]}
23... Rf8 {[%clk 0:01:16.7]} 24. a4 {[%clk 0:01:54.7]} 24... Qc2 {[%clk
0:01:13.6]} 25. a5 {[%clk 0:01:48.4]} 25... Rb8 {[%clk 0:01:06.7]} 26. Qe6+
{[%clk 0:01:44.7]} 26... Kh8 {[%clk 0:01:03]} 27. Qxc6 {[%clk 0:01:44.2]} 27...
Rb2 {[%clk 0:00:55.6]} 28. h3 {[%clk 0:01:43.1]} 28... Qf2+ {[%clk 0:00:39.7]}
29. Kh1 {[%clk 0:01:42.1]} 29... Re2 {[%clk 0:00:26.3]} 30. a6 {[%clk
0:01:38.9]} 30... Kh7 {[%clk 0:00:25.4]} 31. Qc7 {[%clk 0:01:27]} 31... Qxg2#
{[%clk 0:00:24.3]} 0-1

[Event "*** SCC Grand Prix: Titled Tuesday Blitz"]
[Site "Chess.com"]
[Date "2020.06.02"]
[Round "3"]
[White "PauloFanha"]
[Black "korkmaz16"]
[Result "0-1"]
[WhiteElo "1949"]
[BlackElo "2255"]
[TimeControl "180+1"]
[EndTime "10:27:12 PDT"]
[Termination "korkmaz16 won by resignation"]

1. e4 {[%clk 0:03:00.9]} 1... c5 {[%clk 0:02:55.1]} 2. Nf3 {[%clk 0:02:59.7]}
2... e6 {[%clk 0:02:53.9]} 3. c4 {[%clk 0:02:57.9]} 3... Nc6 {[%clk 0:02:52.6]}
4. Nc3 {[%clk 0:02:54.7]} 4... Nf6 {[%clk 0:02:50]} 5. Be2 {[%clk 0:02:52.6]}
5... d6 {[%clk 0:02:43.5]} 6. O-O {[%clk 0:02:50.3]} 6... Be7 {[%clk 0:02:42.8]}
7. d4 {[%clk 0:02:48.7]} 7... cxd4 {[%clk 0:02:42.2]} 8. Nxd4 {[%clk 0:02:49.1]}
8... O-O {[%clk 0:02:40.6]} 9. Be3 {[%clk 0:02:46.8]} 9... Bd7 {[%clk
0:02:35.1]} 10. Qd2 {[%clk 0:02:45.5]} 10... a6 {[%clk 0:02:31.9]} 11. Rac1
{[%clk 0:02:41.4]} 11... Nxd4 {[%clk 0:02:26.7]} 12. Bxd4 {[%clk 0:02:38.9]}
12... Bc6 {[%clk 0:02:26.7]} 13. f3 {[%clk 0:02:36.6]} 13... d5 {[%clk
0:02:10.1]} 14. cxd5 {[%clk 0:02:28.8]} 14... exd5 {[%clk 0:02:09.3]} 15. e5
{[%clk 0:02:13.8]} 15... Nd7 {[%clk 0:02:03.5]} 16. Bd3 {[%clk 0:02:08.1]} 16...
Nc5 {[%clk 0:02:01.2]} 17. Bb1 {[%clk 0:02:03.6]} 17... Ne6 {[%clk 0:01:59.8]}
18. Ne2 {[%clk 0:01:57.3]} 18... Bb5 {[%clk 0:01:53.9]} 19. Rfd1 {[%clk
0:01:49]} 19... Bxe2 {[%clk 0:01:50.7]} 20. Qxe2 {[%clk 0:01:46.7]} 20... Nxd4
{[%clk 0:01:50.9]} 21. Rxd4 {[%clk 0:01:44.8]} 21... Qb6 {[%clk 0:01:51.3]} 22.
Qd3 {[%clk 0:01:42.3]} 22... g6 {[%clk 0:01:46.3]} 23. Kh1 {[%clk 0:01:36.7]}
23... Qxb2 {[%clk 0:01:44]} 24. Rd1 {[%clk 0:01:27.8]} 24... Rad8 {[%clk
0:01:32.1]} 25. Rxd5 {[%clk 0:01:23.3]} 25... Rxd5 {[%clk 0:01:31.6]} 26. Qxd5
{[%clk 0:01:23.5]} 26... Rd8 {[%clk 0:01:30.1]} 27. Qxd8+ {[%clk 0:01:18.9]}
27... Bxd8 {[%clk 0:01:29.2]} 28. Rxd8+ {[%clk 0:01:19.3]} 28... Kg7 {[%clk
0:01:29.2]} 29. Rd1 {[%clk 0:01:19.3]} 29... Qxe5 {[%clk 0:01:27.8]} 30. Bc2
{[%clk 0:01:14.6]} 30... b5 {[%clk 0:01:21.7]} 31. Bb3 {[%clk 0:01:12]} 31... a5
{[%clk 0:01:21.8]} 32. h3 {[%clk 0:01:07.2]} 32... a4 {[%clk 0:01:21.3]} 33. Bd5
{[%clk 0:01:01.2]} 33... Qe2 {[%clk 0:01:16.2]} 34. Rd4 {[%clk 0:00:56.6]} 34...
Qe1+ {[%clk 0:01:14.6]} 35. Kh2 {[%clk 0:00:52.3]} 35... Qe5+ {[%clk 0:01:15.1]}
0-1

[Event "*** SCC Grand Prix: Titled Tuesday Blitz"]
[Site "Chess.com"]
[Date "2020.06.02"]
[Round "3"]
[White "fridaywins"]
[Black "HansCoolNiemann"]
[Result "0-1"]
[WhiteElo "2235"]
[BlackElo "2813"]
[TimeControl "180+1"]
[EndTime "10:27:13 PDT"]
[Termination "HansCoolNiemann won by resignation"]

1. e4 {[%clk 0:03:00.9]} 1... e6 {[%clk 0:02:59.4]} 2. d4 {[%clk 0:02:59.7]}
2... d5 {[%clk 0:03:00.3]} 3. Nc3 {[%clk 0:03:00.1]} 3... Nf6 {[%clk 0:03:00.4]}
4. e5 {[%clk 0:03:00.3]} 4... Nfd7 {[%clk 0:03:00.9]} 5. f4 {[%clk 0:03:01]}
5... c5 {[%clk 0:03:01.5]} 6. Nf3 {[%clk 0:03:01.6]} 6... Nc6 {[%clk 0:03:02.2]}
7. Be3 {[%clk 0:03:01.5]} 7... cxd4 {[%clk 0:03:02.8]} 8. Nxd4 {[%clk
0:03:01.1]} 8... Bc5 {[%clk 0:03:03.5]} 9. Qd2 {[%clk 0:03:00.3]} 9... O-O
{[%clk 0:03:03.4]} 10. O-O-O {[%clk 0:02:59.2]} 10... Bxd4 {[%clk 0:03:03.4]}
11. Bxd4 {[%clk 0:02:58.9]} 11... a6 {[%clk 0:03:04.3]} 12. h4 {[%clk
0:02:53.2]} 12... b5 {[%clk 0:03:03.3]} 13. h5 {[%clk 0:02:51.9]} 13... b4
{[%clk 0:03:03.7]} 14. Ne2 {[%clk 0:02:51.7]} 14... a5 {[%clk 0:03:04]} 15. g4
{[%clk 0:02:49]} 15... Ba6 {[%clk 0:03:02.1]} 16. Ng3 {[%clk 0:02:48.2]} 16...
Bxf1 {[%clk 0:03:01.1]} 17. Rdxf1 {[%clk 0:02:47.8]} 17... a4 {[%clk 0:03:02]}
18. f5 {[%clk 0:02:42.9]} 18... Ndxe5 {[%clk 0:03:00.6]} 19. f6 {[%clk
0:02:36.2]} 19... gxf6 {[%clk 0:02:58.7]} 20. h6 {[%clk 0:02:19.7]} 20... b3
{[%clk 0:02:50.2]} 21. a3 {[%clk 0:02:16.5]} 21... Nxd4 {[%clk 0:02:42.8]} 22.
Qxd4 {[%clk 0:02:15.9]} 22... Qc7 {[%clk 0:02:42.6]} 23. c3 {[%clk 0:02:11.1]}
23... Qc4 {[%clk 0:02:41.5]} 24. Qd2 {[%clk 0:01:50.7]} 24... Qd3 {[%clk
0:02:34.8]} 25. Nh5 {[%clk 0:01:31.5]} 25... Qxd2+ {[%clk 0:02:29.3]} 26. Kxd2
{[%clk 0:01:31]} 26... Nxg4 {[%clk 0:02:30.2]} 27. Nxf6+ {[%clk 0:01:17.5]}
27... Nxf6 {[%clk 0:02:28.5]} 28. Rxf6 {[%clk 0:01:18.4]} 28... Kh8 {[%clk
0:02:27.4]} 29. Kd3 {[%clk 0:01:11.3]} 29... Rae8 {[%clk 0:02:11.6]} 30. Kd4
{[%clk 0:01:10]} 30... e5+ {[%clk 0:01:56.1]} 31. Kxd5 {[%clk 0:01:10.1]} 31...
e4 {[%clk 0:01:57]} 32. Re1 {[%clk 0:01:04.5]} 32... Re7 {[%clk 0:01:54.1]} 33.
Rf4 {[%clk 0:00:56.5]} 33... f5 {[%clk 0:01:52.9]} 34. Kd6 {[%clk 0:00:40.6]}
34... Ree8 {[%clk 0:01:48.1]} 35. Kd7 {[%clk 0:00:33.4]} 35... Re5 {[%clk
0:01:46.7]} 36. Kd6 {[%clk 0:00:33]} 36... Rfe8 {[%clk 0:01:42.4]} 37. Re3
{[%clk 0:00:31.8]} 37... R8e6+ {[%clk 0:01:41.7]} 38. Kd7 {[%clk 0:00:31.9]}
38... Rxh6 {[%clk 0:01:42.6]} 0-1

[Event "*** SCC Grand Prix: Titled Tuesday Blitz"]
[Site "Chess.com"]
[Date "2020.06.02"]
[Round "3"]
[White "KerryStead"]
[Black "Denis_Palkovich"]
[Result "0-1"]
[WhiteElo "2095"]
[BlackElo "2322"]
[TimeControl "180+1"]
[EndTime "10:27:13 PDT"]
[Termination "Denis_Palkovich won on time"]

1. d4 {[%clk 0:03:00.9]} 1... Nf6 {[%clk 0:02:57.8]} 2. f3 {[%clk 0:03:01]} 2...
d5 {[%clk 0:02:52.4]} 3. e4 {[%clk 0:02:59.9]} 3... dxe4 {[%clk 0:02:51.5]} 4.
Nc3 {[%clk 0:02:59.6]} 4... exf3 {[%clk 0:02:44.2]} 5. Nxf3 {[%clk 0:02:58.8]}
5... Bf5 {[%clk 0:02:41]} 6. Bc4 {[%clk 0:02:57.5]} 6... e6 {[%clk 0:02:41]} 7.
O-O {[%clk 0:02:56.7]} 7... Nbd7 {[%clk 0:02:40.6]} 8. Ng5 {[%clk 0:02:54.3]}
8... Nb6 {[%clk 0:02:31.9]} 9. Bb3 {[%clk 0:02:42.7]} 9... Bg6 {[%clk
0:02:26.5]} 10. Bf4 {[%clk 0:02:20.6]} 10... c5 {[%clk 0:02:24.3]} 11. dxc5
{[%clk 0:02:01.8]} 11... Bxc5+ {[%clk 0:02:22.2]} 12. Kh1 {[%clk 0:02:01.7]}
12... Qxd1 {[%clk 0:02:20.3]} 13. Raxd1 {[%clk 0:02:00.9]} 13... O-O {[%clk
0:02:09.5]} 14. h3 {[%clk 0:01:54.6]} 14... Rad8 {[%clk 0:02:06.7]} 15. a4
{[%clk 0:01:35.4]} 15... h6 {[%clk 0:02:05.2]} 16. Nf3 {[%clk 0:01:33.9]} 16...
Ne4 {[%clk 0:01:56.8]} 17. a5 {[%clk 0:00:25.1]} 17... Rxd1 {[%clk 0:01:55.5]}
18. Nxd1 {[%clk 0:00:21.9]} 18... Nd5 {[%clk 0:01:53.2]} 19. Kh2 {[%clk
0:00:20.1]} 19... Nxf4 {[%clk 0:01:51.6]} 20. Ne5 {[%clk 0:00:19.1]} 20... Nd5
{[%clk 0:01:34.3]} 21. Re1 {[%clk 0:00:14.2]} 21... Bd6 {[%clk 0:01:24.9]} 0-1

[Event "*** SCC Grand Prix: Titled Tuesday Blitz"]
[Site "Chess.com"]
[Date "2020.06.02"]
[Round "3"]
[White "GAusal"]
[Black "Ariadna_Atreides"]
[Result "1/2-1/2"]
[WhiteElo "1994"]
[BlackElo "2043"]
[TimeControl "180+1"]
[EndTime "10:27:14 PDT"]
[Termination "Game drawn by agreement"]

1. e4 {[%clk 0:03:00.9]} 1... c5 {[%clk 0:02:59.4]} 2. Nf3 {[%clk 0:03:00]} 2...
d6 {[%clk 0:02:59.4]} 3. d4 {[%clk 0:02:58]} 3... cxd4 {[%clk 0:02:59.9]} 4.
Nxd4 {[%clk 0:02:54.7]} 4... Nf6 {[%clk 0:03:00.4]} 5. Nc3 {[%clk 0:02:49.6]}
5... Nc6 {[%clk 0:03:00.9]} 6. Be2 {[%clk 0:02:44.1]} 6... e5 {[%clk 0:03:00.5]}
7. Nf3 {[%clk 0:02:38.8]} 7... Be7 {[%clk 0:03:00.5]} 8. Bg5 {[%clk 0:02:34.4]}
8... Be6 {[%clk 0:02:59]} 9. O-O {[%clk 0:02:29.9]} 9... Kf8 {[%clk 0:02:58.3]}
10. Bxf6 {[%clk 0:02:24.5]} 10... Bxf6 {[%clk 0:02:54.1]} 11. Qd2 {[%clk
0:02:20.7]} 11... Be7 {[%clk 0:02:52.1]} 12. Nd5 {[%clk 0:02:14.9]} 12... Rc8
{[%clk 0:02:40.4]} 13. Rfd1 {[%clk 0:02:07.9]} 13... Bxd5 {[%clk 0:02:38.6]} 14.
exd5 {[%clk 0:02:03.5]} 14... Nb8 {[%clk 0:02:36.6]} 15. Bd3 {[%clk 0:02:00]}
15... g6 {[%clk 0:02:35.7]} 16. Qh6+ {[%clk 0:01:54.9]} 16... Kg8 {[%clk
0:02:35.2]} 17. c3 {[%clk 0:01:50.3]} 17... Bf8 {[%clk 0:02:34.8]} 18. Qe3
{[%clk 0:01:43.2]} 18... Kg7 {[%clk 0:02:30.8]} 19. Qxa7 {[%clk 0:01:37]} 19...
Qc7 {[%clk 0:02:22.8]} 20. Qe3 {[%clk 0:01:31.8]} 20... Nd7 {[%clk 0:02:22.4]}
21. h3 {[%clk 0:01:25.7]} 21... h6 {[%clk 0:02:09.9]} 22. Nh2 {[%clk 0:01:17.9]}
22... f5 {[%clk 0:02:08.9]} 23. f4 {[%clk 0:01:14]} 23... e4 {[%clk 0:02:02.5]}
24. Bc2 {[%clk 0:01:07.4]} 24... Be7 {[%clk 0:01:52.8]} 25. g4 {[%clk 0:01:06]}
25... Bf6 {[%clk 0:01:48.4]} 26. Rf1 {[%clk 0:00:57.3]} 26... Kf7 {[%clk
0:01:42.9]} 27. Rf2 {[%clk 0:00:57]} 27... h5 {[%clk 0:01:36.9]} 28. g5 {[%clk
0:00:50.2]} 28... Bg7 {[%clk 0:01:36.4]} 29. h4 {[%clk 0:00:48.8]} 29... b5
{[%clk 0:01:28.4]} 30. a3 {[%clk 0:00:47.7]} 30... Nc5 {[%clk 0:01:27.3]} 31.
Nf1 {[%clk 0:00:45.3]} 31... Na4 {[%clk 0:01:23.9]} 32. Bb3 {[%clk 0:00:33.8]}
1/2-1/2

[Event "*** SCC Grand Prix: Titled Tuesday Blitz"]
[Site "Chess.com"]
[Date "2020.06.02"]
[Round "3"]
[White "Forking_U"]
[Black "profofchess"]
[Result "0-1"]
[WhiteElo "2191"]
[BlackElo "2446"]
[TimeControl "180+1"]
[EndTime "10:27:20 PDT"]
[Termination "profofchess won on time"]

1. e4 {[%clk 0:03:00.9]} 1... e6 {[%clk 0:03:00]} 2. d4 {[%clk 0:02:59.9]} 2...
d5 {[%clk 0:03:00.9]} 3. Nd2 {[%clk 0:03:00.4]} 3... Nf6 {[%clk 0:03:00.7]} 4.
e5 {[%clk 0:03:01]} 4... Nfd7 {[%clk 0:03:01]} 5. Bd3 {[%clk 0:03:01.7]} 5... c5
{[%clk 0:03:01.9]} 6. c3 {[%clk 0:03:02.3]} 6... Nc6 {[%clk 0:03:02.2]} 7. Ngf3
{[%clk 0:03:02.9]} 7... g6 {[%clk 0:03:00.5]} 8. h4 {[%clk 0:02:55.2]} 8... h6
{[%clk 0:03:00]} 9. Bc2 {[%clk 0:02:50.4]} 9... Bg7 {[%clk 0:02:57.5]} 10. Nf1
{[%clk 0:02:46.6]} 10... Qa5 {[%clk 0:02:42]} 11. a3 {[%clk 0:02:35]} 11... cxd4
{[%clk 0:02:29.6]} 12. b4 {[%clk 0:02:34.5]} 12... Qb6 {[%clk 0:02:29.6]} 13.
cxd4 {[%clk 0:02:33.9]} 13... a5 {[%clk 0:02:29.8]} 14. b5 {[%clk 0:01:52.7]}
14... Qxb5 {[%clk 0:02:24.5]} 15. Ne3 {[%clk 0:01:05.5]} 15... Nb6 {[%clk
0:02:16]} 16. Rb1 {[%clk 0:01:01.8]} 16... Qa6 {[%clk 0:02:15.4]} 17. Bd3 {[%clk
0:01:00.1]} 17... Nc4 {[%clk 0:02:14.7]} 18. Nxc4 {[%clk 0:00:52.4]} 18... dxc4
{[%clk 0:02:13.8]} 19. Be4 {[%clk 0:00:32.5]} 19... Bd7 {[%clk 0:01:46.6]} 20.
d5 {[%clk 0:00:17.4]} 20... Nxe5 {[%clk 0:01:29.3]} 21. dxe6 {[%clk 0:00:16.5]}
21... Qxe6 {[%clk 0:01:28.5]} 22. Nd4 {[%clk 0:00:08.6]} 22... Nd3+ {[%clk
0:01:18.2]} 23. Kf1 {[%clk 0:00:03]} 23... Qxe4 {[%clk 0:01:14.6]} 0-1

[Event "*** SCC Grand Prix: Titled Tuesday Blitz"]
[Site "Chess.com"]
[Date "2020.06.02"]
[Round "3"]
[White "Kolle05"]
[Black "mr65"]
[Result "1-0"]
[WhiteElo "2381"]
[BlackElo "2151"]
[TimeControl "180+1"]
[EndTime "10:27:28 PDT"]
[Termination "Kolle05 won on time"]

1. e4 {[%clk 0:03:00.9]} 1... e5 {[%clk 0:02:58.9]} 2. Nf3 {[%clk 0:03:00.4]}
2... Nc6 {[%clk 0:02:58.8]} 3. Bb5 {[%clk 0:03:00.8]} 3... a6 {[%clk 0:02:58.2]}
4. Ba4 {[%clk 0:03:00.8]} 4... Nf6 {[%clk 0:02:57.9]} 5. Qe2 {[%clk 0:03:01.1]}
5... b5 {[%clk 0:02:56.3]} 6. Bb3 {[%clk 0:03:00.7]} 6... Be7 {[%clk 0:02:56]}
7. O-O {[%clk 0:03:00.2]} 7... O-O {[%clk 0:02:53.4]} 8. a4 {[%clk 0:02:59.8]}
8... Bb7 {[%clk 0:02:47]} 9. d3 {[%clk 0:02:49]} 9... d5 {[%clk 0:02:40.6]} 10.
c3 {[%clk 0:02:32.8]} 10... dxe4 {[%clk 0:02:19.2]} 11. dxe4 {[%clk 0:02:33.7]}
11... b4 {[%clk 0:02:11.8]} 12. a5 {[%clk 0:02:23.1]} 12... bxc3 {[%clk
0:02:08.8]} 13. bxc3 {[%clk 0:02:20.6]} 13... Nd7 {[%clk 0:01:38.7]} 14. Rd1
{[%clk 0:02:12.5]} 14... Qe8 {[%clk 0:01:31.7]} 15. Bc4 {[%clk 0:01:44.5]} 15...
Nc5 {[%clk 0:01:21.2]} 16. Ba3 {[%clk 0:01:13.2]} 16... Ne6 {[%clk 0:01:13.7]}
17. Bxe7 {[%clk 0:01:09.9]} 17... Qxe7 {[%clk 0:01:12.2]} 18. Bxe6 {[%clk
0:01:04.7]} 1-0

[Event "*** SCC Grand Prix: Titled Tuesday Blitz"]
[Site "Chess.com"]
[Date "2020.06.02"]
[Round "3"]
[White "FabianoCaruana"]
[Black "Biranidun"]
[Result "1-0"]
[WhiteElo "3024"]
[BlackElo "2703"]
[TimeControl "180+1"]
[EndTime "10:27:29 PDT"]
[Termination "FabianoCaruana won by checkmate"]

1. d4 {[%clk 0:03:00.9]} 1... Nf6 {[%clk 0:02:59.7]} 2. c4 {[%clk 0:03:01.4]}
2... g6 {[%clk 0:02:59.9]} 3. g3 {[%clk 0:03:00.9]} 3... Bg7 {[%clk 0:02:57.9]}
4. Bg2 {[%clk 0:03:01]} 4... d5 {[%clk 0:02:56.6]} 5. cxd5 {[%clk 0:02:58.7]}
5... Nxd5 {[%clk 0:02:55.7]} 6. Nc3 {[%clk 0:02:58.1]} 6... Nxc3 {[%clk
0:02:52.9]} 7. bxc3 {[%clk 0:02:59]} 7... c5 {[%clk 0:02:52.7]} 8. e3 {[%clk
0:02:57.8]} 8... Qa5 {[%clk 0:02:50.6]} 9. Bd2 {[%clk 0:02:54.1]} 9... O-O
{[%clk 0:02:50]} 10. Ne2 {[%clk 0:02:52.7]} 10... Nc6 {[%clk 0:02:49.2]} 11. O-O
{[%clk 0:02:51.5]} 11... Rd8 {[%clk 0:02:46.6]} 12. a4 {[%clk 0:02:50.2]} 12...
Qa6 {[%clk 0:02:33.1]} 13. Re1 {[%clk 0:02:32.2]} 13... Na5 {[%clk 0:02:20.7]}
14. Nf4 {[%clk 0:02:23.7]} 14... Rb8 {[%clk 0:02:04.6]} 15. Nd5 {[%clk
0:02:20.2]} 15... Kf8 {[%clk 0:01:54.7]} 16. e4 {[%clk 0:02:14.9]} 16... Bd7
{[%clk 0:01:02.8]} 17. Bg5 {[%clk 0:02:05.1]} 17... Nc6 {[%clk 0:00:30.2]} 18.
Rb1 {[%clk 0:01:44.1]} 18... b6 {[%clk 0:00:26.1]} 19. e5 {[%clk 0:01:40.5]}
19... Rbc8 {[%clk 0:00:21.4]} 20. Qf3 {[%clk 0:01:03.9]} 20... h6 {[%clk
0:00:18.2]} 21. e6 {[%clk 0:01:00.5]} 21... hxg5 {[%clk 0:00:03.3]} 22. Qxf7#
{[%clk 0:00:59.3]} 1-0

[Event "*** SCC Grand Prix: Titled Tuesday Blitz"]
[Site "Chess.com"]
[Date "2020.06.02"]
[Round "3"]
[White "ItsCheckM8Mate"]
[Black "mamonika"]
[Result "1-0"]
[WhiteElo "2273"]
[BlackElo "1965"]
[TimeControl "180+1"]
[EndTime "10:27:30 PDT"]
[Termination "ItsCheckM8Mate won by resignation"]

1. d4 {[%clk 0:03:00.9]} 1... d5 {[%clk 0:02:59.6]} 2. Nf3 {[%clk 0:03:00.7]}
2... Nf6 {[%clk 0:02:56.7]} 3. Bf4 {[%clk 0:03:00.2]} 3... e6 {[%clk 0:02:55.5]}
4. e3 {[%clk 0:03:00]} 4... Bd6 {[%clk 0:02:53]} 5. Ne5 {[%clk 0:02:57.5]} 5...
O-O {[%clk 0:02:44.1]} 6. Nd2 {[%clk 0:02:55.7]} 6... c5 {[%clk 0:02:44.1]} 7.
c3 {[%clk 0:02:44.5]} 7... Nc6 {[%clk 0:02:39.7]} 8. Bd3 {[%clk 0:02:37.4]} 8...
c4 {[%clk 0:02:12.6]} 9. Bc2 {[%clk 0:02:26.4]} 9... Qc7 {[%clk 0:02:12.7]} 10.
Ndf3 {[%clk 0:02:22.3]} 10... b5 {[%clk 0:02:05.6]} 11. O-O {[%clk 0:01:56.9]}
11... Bb7 {[%clk 0:02:04.9]} 12. a3 {[%clk 0:01:40.6]} 12... Nh5 {[%clk
0:01:53.6]} 13. Bxh7+ {[%clk 0:01:30.6]} 13... Kh8 {[%clk 0:01:39.9]} 14. Ng5
{[%clk 0:01:11.3]} 14... Nf6 {[%clk 0:01:32]} 15. Qf3 {[%clk 0:00:41.9]} 15...
Bxe5 {[%clk 0:00:52.4]} 16. dxe5 {[%clk 0:00:38]} 16... Nxh7 {[%clk 0:00:31]}
17. Qh3 {[%clk 0:00:27.6]} 1-0

[Event "*** SCC Grand Prix: Titled Tuesday Blitz"]
[Site "Chess.com"]
[Date "2020.06.02"]
[Round "3"]
[White "Forantes"]
[Black "cassoulet"]
[Result "0-1"]
[WhiteElo "2305"]
[BlackElo "2600"]
[TimeControl "180+1"]
[EndTime "10:27:31 PDT"]
[Termination "cassoulet won by resignation"]

1. Nf3 {[%clk 0:03:00.9]} 1... Nf6 {[%clk 0:02:59.3]} 2. g3 {[%clk 0:03:01]}
2... g6 {[%clk 0:02:59]} 3. Bg2 {[%clk 0:03:01.4]} 3... Bg7 {[%clk 0:02:59.7]}
4. O-O {[%clk 0:03:01.7]} 4... O-O {[%clk 0:03:00.4]} 5. d4 {[%clk 0:03:02.4]}
5... d6 {[%clk 0:03:00.8]} 6. c4 {[%clk 0:03:02.2]} 6... Nbd7 {[%clk 0:03:01]}
7. Nc3 {[%clk 0:03:02.1]} 7... a6 {[%clk 0:03:01.3]} 8. Qb3 {[%clk 0:02:59.4]}
8... c5 {[%clk 0:03:01.1]} 9. Rd1 {[%clk 0:02:58.2]} 9... cxd4 {[%clk
0:03:00.7]} 10. Nxd4 {[%clk 0:02:58.4]} 10... Nc5 {[%clk 0:03:01]} 11. Qc2
{[%clk 0:02:54.3]} 11... Rb8 {[%clk 0:03:00.2]} 12. b4 {[%clk 0:02:46.7]} 12...
Ne6 {[%clk 0:02:59.8]} 13. Bb2 {[%clk 0:02:20.8]} 13... Nxd4 {[%clk 0:02:50.4]}
14. Rxd4 {[%clk 0:02:19.6]} 14... Be6 {[%clk 0:02:50.6]} 15. Rad1 {[%clk
0:01:39.2]} 15... Qc7 {[%clk 0:02:49.3]} 16. Rh4 {[%clk 0:01:05.6]} 16... Rfc8
{[%clk 0:02:27.4]} 17. Nd5 {[%clk 0:00:52.2]} 17... Bxd5 {[%clk 0:02:21.6]} 18.
Bxd5 {[%clk 0:00:49.8]} 18... b5 {[%clk 0:01:59.8]} 19. Qc3 {[%clk 0:00:20.2]}
19... e6 {[%clk 0:01:48.9]} 20. Bf3 {[%clk 0:00:10.9]} 20... bxc4 {[%clk
0:01:46.8]} 21. a3 {[%clk 0:00:07.3]} 21... a5 {[%clk 0:01:45.5]} 22. g4 {[%clk
0:00:06.4]} 22... d5 {[%clk 0:01:36]} 23. Qd2 {[%clk 0:00:02.3]} 23... c3 {[%clk
0:01:34.6]} 24. Bxc3 {[%clk 0:00:02.3]} 24... Qxc3 {[%clk 0:01:35.5]} 25. Qxc3
{[%clk 0:00:02.9]} 25... Rxc3 {[%clk 0:01:36.2]} 26. bxa5 {[%clk 0:00:03.8]}
26... Rxa3 {[%clk 0:01:36.1]} 27. g5 {[%clk 0:00:04.7]} 27... Nd7 {[%clk
0:01:33.9]} 28. Bxd5 {[%clk 0:00:05.1]} 28... exd5 {[%clk 0:01:33.3]} 29. Rxd5
{[%clk 0:00:06]} 29... Nf8 {[%clk 0:01:32.1]} 30. Rc4 {[%clk 0:00:05]} 30... Ne6
{[%clk 0:01:30.9]} 31. Rc6 {[%clk 0:00:04.9]} 31... Nf4 {[%clk 0:01:29.7]} 32.
Rd1 {[%clk 0:00:04.5]} 0-1